[Event "Swedish Chess Championship 2019: Minior-SM"]
[Site "Stiga Sports Arena, Arenatorget 1, Eskilstuna, Sweden, Sweden"]
[Date "2019.07.14"]
[Round "9.4"]
[White "Backlund, Elias"]
[Black "Fridman, Arvid"]
[Result "1/2-1/2"]
[TimeControl "90 minutes for 40 moves + 30 minutes for the rest of the game + 30 seconds per move from move one"]
[WhiteFideId "1753207"]
[BlackFideId "1758632"]
[WhiteElo "1656"]
[BlackElo "1326"]

1. d4 {[%clk 01:30:58]} d5 {[%clk 01:30:46]} {[%emt 00:00:15]} 2. c4 {[%clk
01:31:22]} {[%emt 00:00:05]} c6 {[%clk 01:30:59]} {[%emt 00:00:17]} 3. Nc3
{[%clk 01:31:40]} {[%emt 00:00:13]} Nf6 {[%clk 01:31:11]} {[%emt 00:00:18]} 4.
Bf4 {[%clk 01:31:23]} {[%emt 00:00:47]} Bf5 {[%clk 01:30:54]} {[%emt 00:00:47]}
5. cxd5 {[%clk 01:30:35]} {[%emt 00:01:18]} Nxd5 {[%clk 01:29:30]} {[%emt
00:01:54]} 6. Nxd5 {[%clk 01:29:53]} {[%emt 00:01:12]} Qxd5 {[%clk 01:29:17]}
{[%emt 00:00:44]} 7. e3 {[%clk 01:29:14]} {[%emt 00:01:08]} e6 {[%clk
01:27:51]} {[%emt 00:01:56]} 8. a3 {[%clk 01:28:25]} {[%emt 00:01:18]} Nd7
{[%clk 01:26:17]} {[%emt 00:02:05]} 9. Nf3 {[%clk 01:27:08]} {[%emt 00:01:47]}
Rc8 {[%clk 01:21:40]} {[%emt 00:05:07]} 10. Bd3 {[%clk 01:24:57]} {[%emt
00:02:42]} Bxd3 {[%clk 01:15:06]} {[%emt 00:07:05]} 11. Qxd3 {[%clk 01:25:17]}
{[%emt 00:00:09]} c5 {[%clk 01:15:16]} {[%emt 00:00:21]} 12. Rc1 {[%clk
01:20:51]} {[%emt 00:04:55]} Qa2 {[%clk 01:10:57]} {[%emt 00:04:49]} 13. Qb5
{[%clk 01:14:38]} {[%emt 00:06:43]} Qd5 {[%clk 01:07:48]} {[%emt 00:03:40]} 14.
O-O {[%clk 01:13:39]} {[%emt 00:01:29]} c4 {[%clk 01:06:30]} {[%emt 00:01:48]}
15. Qa4 {[%clk 01:08:11]} {[%emt 00:05:58]} a6 {[%clk 01:05:47]} {[%emt
00:01:13]} 16. Rfe1 {[%clk 00:59:37]} {[%emt 00:09:03]} b5 {[%clk 00:59:09]}
{[%emt 00:07:08]} 17. Qxa6 {[%clk 00:50:01]} {[%emt 00:10:06]} Ra8 {[%clk
00:59:23]} {[%emt 00:00:16]} 18. e4 {[%clk 00:50:26]} {[%emt 00:00:04]} Qxe4
{[%clk 00:59:33]} {[%emt 00:00:21]} 19. Rxe4 {[%clk 00:50:44]} {[%emt
00:00:12]} Rxa6 {[%clk 00:59:54]} {[%emt 00:00:09]} 20. Kf1 {[%clk 00:48:46]}
{[%emt 00:02:27]} Nf6 {[%clk 00:57:19]} {[%emt 00:03:05]} 21. Re2 {[%clk
00:46:56]} {[%emt 00:02:20]} Nd5 {[%clk 00:55:24]} {[%emt 00:02:25]} 22. Bg3
{[%clk 00:41:57]} {[%emt 00:05:28]} Bd6 {[%clk 00:49:53]} {[%emt 00:06:00]}
1/2-1/2

[Event "Swedish Chess Championship 2019: Minior-SM"]
[Site "Stiga Sports Arena, Arenatorget 1, Eskilstuna, Sweden, Sweden"]
[Date "2019.07.14"]
[Round "9.5"]
[White "Morell, Ludvig"]
[Black "Zahn, Thomas"]
[Result "1-0"]
[TimeControl "90 minutes for 40 moves + 30 minutes for the rest of the game + 30 seconds per move from move one"]
[WhiteFideId "1736779"]
[BlackFideId "1746103"]
[WhiteElo "1744"]
[BlackElo "1422"]

1. e4 {[%clk 01:30:34]} {[%emt 00:00:25]} e5 {[%clk 01:30:47]} {[%emt
00:00:13]} 2. Nf3 {[%clk 01:30:56]} {[%emt 00:00:06]} Nc6 {[%clk 01:31:05]}
{[%emt 00:00:14]} 3. Bc4 {[%clk 01:31:22]} {[%emt 00:00:03]} Nf6 {[%clk
01:30:33]} {[%emt 00:01:03]} 4. Ng5 {[%clk 01:31:09]} {[%emt 00:00:42]} d5
{[%clk 01:30:51]} {[%emt 00:00:12]} 5. exd5 {[%clk 01:31:35]} {[%emt 00:00:04]}
Na5 {[%clk 01:31:17]} {[%emt 00:00:05]} 6. Bb5+ {[%clk 01:31:57]} {[%emt
00:00:08]} c6 {[%clk 01:31:34]} {[%emt 00:00:13]} 7. dxc6 {[%clk 01:32:18]}
{[%emt 00:00:08]} bxc6 {[%clk 01:31:34]} {[%emt 00:00:31]} 8. Qf3 {[%clk
01:32:38]} {[%emt 00:00:09]} Bb7 {[%clk 01:30:17]} {[%emt 00:01:49]} 9. Bd3
{[%clk 01:32:51]} {[%emt 00:00:16]} Qd5 {[%clk 01:20:26]} {[%emt 00:10:21]} 10.
Nc3 {[%clk 01:25:23]} {[%emt 00:07:58]} Qxf3 {[%clk 01:20:14]} {[%emt
00:00:43]} 11. Nxf3 {[%clk 01:25:40]} {[%emt 00:00:13]} Bd6 {[%clk 01:19:57]}
{[%emt 00:00:47]} 12. O-O {[%clk 01:25:44]} {[%emt 00:00:26]} O-O {[%clk
01:16:24]} {[%emt 00:04:04]} 13. b3 {[%clk 01:19:15]} {[%emt 00:06:58]} a6
{[%clk 01:08:54]} {[%emt 00:08:01]} 14. Bb2 {[%clk 01:19:02]} {[%emt 00:00:43]}
c5 {[%clk 01:07:30]} {[%emt 00:01:54]} 15. Rfe1 {[%clk 01:11:51]} {[%emt
00:07:40]} Bxf3 {[%clk 01:06:40]} {[%emt 00:01:21]} 16. gxf3 {[%clk 01:11:30]}
{[%emt 00:00:52]} Nc6 {[%clk 01:01:25]} {[%emt 00:05:44]} 17. Ne4 {[%clk
01:11:28]} {[%emt 00:00:30]} Nxe4 {[%clk 01:01:39]} {[%emt 00:00:17]} 18. Bxe4
{[%clk 01:11:50]} {[%emt 00:00:08]} Rac8 {[%clk 01:01:59]} {[%emt 00:00:10]} 19.
Bxc6 {[%clk 01:12:12]} {[%emt 00:00:08]} Rxc6 {[%clk 01:01:24]} {[%emt
00:01:06]} 20. Bxe5 {[%clk 01:12:08]} {[%emt 00:00:34]} Rd8 {[%clk 01:00:26]}
{[%emt 00:01:26]} 21. Bxd6 {[%clk 01:12:25]} {[%emt 00:00:14]} Rcxd6 {[%clk
01:00:35]} {[%emt 00:00:21]} 22. d3 {[%clk 01:12:35]} {[%emt 00:00:20]} f6
{[%clk 01:00:43]} {[%emt 00:00:22]} 23. Re7 {[%clk 01:12:57]} {[%emt 00:00:08]}
R8d7 {[%clk 00:57:56]} {[%emt 00:03:18]} 24. Rae1 {[%clk 01:12:41]} {[%emt
00:00:44]} Rxe7 {[%clk 00:54:32]} {[%emt 00:03:55]} 25. Rxe7 {[%clk 01:13:05]}
{[%emt 00:00:06]} Rc6 {[%clk 00:54:54]} {[%emt 00:00:08]} 26. Kg2 {[%clk
01:13:12]} {[%emt 00:00:23]} h5 {[%clk 00:55:16]} {[%emt 00:00:08]} 27. Kg3
{[%clk 01:13:30]} {[%emt 00:00:11]} Kh7 {[%clk 00:54:24]} {[%emt 00:01:22]} 28.
Re4 {[%clk 01:11:55]} {[%emt 00:02:05]} g5 {[%clk 00:53:55]} {[%emt 00:01:00]}
29. Rc4 {[%clk 01:11:29]} {[%emt 00:00:56]} Kg6 {[%clk 00:51:30]} {[%emt
00:02:55]} 30. d4 {[%clk 01:11:03]} {[%emt 00:00:55]} f5 {[%clk 00:39:07]}
{[%emt 00:12:54]} 31. Rxc5 {[%clk 01:11:13]} {[%emt 00:00:20]} f4+ {[%clk
00:35:48]} {[%emt 00:03:49]} 32. Kg2 {[%clk 01:11:38]} {[%emt 00:00:05]} Re6
{[%clk 00:35:28]} {[%emt 00:00:49]} 33. d5 {[%clk 01:12:01]} {[%emt 00:00:07]}
Re1 {[%clk 00:32:58]} {[%emt 00:03:01]} 34. Rc6+ {[%clk 01:12:19]} {[%emt
00:00:12]} Kf5 {[%clk 00:33:21]} {[%emt 00:00:07]} 35. Rxa6 {[%clk 01:12:44]}
{[%emt 00:00:06]} g4 {[%clk 00:32:34]} {[%emt 00:01:16]} 36. Re6 {[%clk
01:07:56]} {[%emt 00:05:18]} Rd1 {[%clk 00:32:29]} {[%emt 00:00:35]} 37. Re2
{[%clk 01:06:11]} {[%emt 00:02:15]} Kg5 {[%clk 00:27:35]} {[%emt 00:05:25]} 38.
fxg4 {[%clk 01:05:25]} {[%emt 00:01:15]} hxg4 {[%clk 00:25:08]} {[%emt
00:02:58]} 39. f3 {[%clk 01:01:45]} {[%emt 00:04:10]} Rxd5 {[%clk 00:24:28]}
{[%emt 00:01:09]} 40. fxg4 {[%clk 01:00:48]} {[%emt 00:01:27]} Kxg4 {[%clk
00:24:35]} {[%emt 00:00:24]} 41. h3+ {[%clk 01:01:03]} {[%emt 00:00:14]} Kg5
{[%clk 00:24:18]} {[%emt 00:00:47]} 42. Kf3 {[%clk 01:00:41]} {[%emt 00:00:49]}
Rd2 {[%clk 00:23:37]} {[%emt 00:01:15]} 1-0

[Event "Swedish Chess Championship 2019: Minior-SM"]
[Site "Stiga Sports Arena, Arenatorget 1, Eskilstuna, Sweden, Sweden"]
[Date "2019.07.14"]
[Round "9.6"]
[White "Willstedt, Lukas"]
[Black "Gerdes, Sebastian"]
[Result "1/2-1/2"]
[TimeControl "90 minutes for 40 moves + 30 minutes for the rest of the game + 30 seconds per move from move one"]
[WhiteFideId "1751913"]
[BlackFideId "1745697"]
[WhiteElo "1259"]
[BlackElo "1529"]

1. d4 {[%clk 01:30:58]} c6 {[%clk 01:30:42]} {[%emt 00:00:19]} 2. c4 {[%clk
01:31:08]} {[%emt 00:00:20]} d5 {[%clk 01:31:06]} {[%emt 00:00:06]} 3. Nc3
{[%clk 01:31:11]} {[%emt 00:00:27]} Nf6 {[%clk 01:31:29]} {[%emt 00:00:08]} 4.
Nf3 {[%clk 01:30:56]} {[%emt 00:00:44]} e6 {[%clk 01:31:41]} {[%emt 00:00:19]}
5. Bg5 {[%clk 01:30:41]} {[%emt 00:00:45]} Nbd7 {[%clk 01:31:42]} {[%emt
00:00:29]} 6. e3 {[%clk 01:30:02]} {[%emt 00:01:08]} h6 {[%clk 01:30:26]}
{[%emt 00:01:47]} 7. Bh4 {[%clk 01:30:10]} {[%emt 00:00:22]} Be7 {[%clk
01:30:27]} {[%emt 00:00:30]} 8. cxd5 {[%clk 01:29:08]} {[%emt 00:01:32]} exd5
{[%clk 01:30:19]} {[%emt 00:00:38]} 9. Bd3 {[%clk 01:28:40]} {[%emt 00:00:57]}
O-O {[%clk 01:26:37]} {[%emt 00:04:12]} 10. Qb3 {[%clk 01:27:34]} {[%emt
00:01:36]} b6 {[%clk 01:25:05]} {[%emt 00:02:04]} 11. O-O {[%clk 01:21:02]}
{[%emt 00:07:00]} Bb7 {[%clk 01:25:21]} {[%emt 00:00:14]} 12. Rfe1 {[%clk
01:20:26]} {[%emt 00:01:05]} c5 {[%clk 01:24:44]} {[%emt 00:01:08]} 13. Bxf6
{[%clk 01:19:53]} {[%emt 00:01:03]} Bxf6 {[%clk 01:25:00]} {[%emt 00:00:14]} 14.
Nxd5 {[%clk 01:17:37]} {[%emt 00:02:46]} Re8 {[%clk 01:18:57]} {[%emt
00:06:33]} 15. Bc4 {[%clk 01:16:35]} {[%emt 00:01:32]} Rf8 {[%clk 01:16:38]}
{[%emt 00:02:49]} 16. Nxf6+ {[%clk 01:15:05]} {[%emt 00:01:59]} Qxf6 {[%clk
01:17:03]} {[%emt 00:00:05]} 17. Bd5 {[%clk 01:14:12]} {[%emt 00:01:23]} Bc6
{[%clk 01:12:39]} {[%emt 00:04:54]} 18. Bxc6 {[%clk 01:09:33]} {[%emt
00:05:10]} Qxc6 {[%clk 01:13:05]} {[%emt 00:00:04]} 19. Rac1 {[%clk 01:09:36]}
{[%emt 00:00:27]} Rac8 {[%clk 01:12:47]} {[%emt 00:00:48]} 20. Qa3 {[%clk
01:08:27]} {[%emt 00:01:38]} Qg6 {[%clk 01:11:16]} {[%emt 00:02:01]} 21. Qxa7
{[%clk 01:05:14]} {[%emt 00:03:43]} Qc6 {[%clk 01:10:41]} {[%emt 00:01:06]} 22.
Qa6 {[%clk 01:03:26]} {[%emt 00:02:18]} Ra8 {[%clk 01:09:41]} {[%emt 00:01:30]}
23. Qc4 {[%clk 01:02:04]} {[%emt 00:01:51]} b5 {[%clk 01:09:49]} {[%emt
00:00:23]} 24. d5 {[%clk 01:01:39]} {[%emt 00:00:55]} Qb7 {[%clk 01:08:55]}
{[%emt 00:01:25]} 25. Qb3 {[%clk 01:01:17]} {[%emt 00:00:51]} c4 {[%clk
01:07:59]} {[%emt 00:01:27]} 26. Rxc4 {[%clk 01:00:56]} {[%emt 00:00:51]} Qxd5
{[%clk 01:08:11]} {[%emt 00:00:17]} 27. Rb4 {[%clk 01:00:38]} {[%emt 00:00:48]}
Qxb3 {[%clk 00:58:55]} {[%emt 00:09:47]} 28. Rxb3 {[%clk 00:59:04]} {[%emt
00:02:04]} Rxa2 {[%clk 00:59:07]} {[%emt 00:00:17]} 29. Rxb5 {[%clk 00:59:22]}
{[%emt 00:00:13]} Rc8 {[%clk 00:57:41]} {[%emt 00:01:56]} 30. Nd4 {[%clk
00:59:07]} {[%emt 00:00:45]} Nc5 {[%clk 00:57:47]} {[%emt 00:00:24]} 31. Rd1
{[%clk 00:58:52]} {[%emt 00:00:44]} Nd3 {[%clk 00:58:05]} {[%emt 00:00:12]} 32.
g3 {[%clk 00:58:23]} {[%emt 00:00:59]} Nxb2 {[%clk 00:58:31]} {[%emt 00:00:05]}
33. Rd2 {[%clk 00:58:07]} {[%emt 00:00:46]} Ra1+ {[%clk 00:58:45]} {[%emt
00:00:16]} 34. Kg2 {[%clk 00:58:26]} {[%emt 00:00:10]} Nc4 {[%clk 00:55:54]}
{[%emt 00:03:21]} 35. Rc2 {[%clk 00:57:42]} {[%emt 00:01:14]} Ra4 {[%clk
00:56:14]} {[%emt 00:00:11]} 36. Rb3 {[%clk 00:57:24]} {[%emt 00:00:47]} Re8
{[%clk 00:55:53]} {[%emt 00:00:51]} 37. Rbc3 {[%clk 00:55:27]} {[%emt
00:02:27]} Nd6 {[%clk 00:55:35]} {[%emt 00:00:49]} 38. Rc6 {[%clk 00:55:08]}
{[%emt 00:00:48]} Ne4 {[%clk 00:55:44]} {[%emt 00:00:21]} 39. Rc8 {[%clk
00:54:50]} {[%emt 00:00:48]} Rxc8 {[%clk 00:55:32]} {[%emt 00:00:43]} 40. Rxc8+
{[%clk 00:55:05]} {[%emt 00:00:15]} Kh7 {[%clk 00:55:57]} {[%emt 00:00:03]} 41.
h4 {[%clk 00:54:50]} {[%emt 00:00:46]} Ra6 {[%clk 00:55:07]} {[%emt 00:01:21]}
42. Rc7 {[%clk 00:54:10]} {[%emt 00:01:08]} Rf6 {[%clk 00:55:24]} {[%emt
00:00:14]} 43. Rc2 {[%clk 00:50:41]} {[%emt 00:03:59]} Rg6 {[%clk 00:51:03]}
{[%emt 00:04:51]} 44. Kf3 {[%clk 00:49:09]} {[%emt 00:02:01]} Nd6 {[%clk
00:50:01]} {[%emt 00:01:33]} 45. Rc6 {[%clk 00:49:12]} {[%emt 00:00:27]} Rf6+
{[%clk 00:49:47]} {[%emt 00:00:44]} 46. Ke2 {[%clk 00:48:30]} {[%emt 00:01:11]}
Kg6 {[%clk 00:49:36]} {[%emt 00:00:42]} 47. g4 {[%clk 00:46:56]} {[%emt
00:02:04]} Ne4 {[%clk 00:47:51]} {[%emt 00:02:16]} 48. f4 {[%clk 00:46:28]}
{[%emt 00:00:57]} Rxc6 {[%clk 00:47:10]} {[%emt 00:01:11]} 49. Nxc6 {[%clk
00:46:36]} {[%emt 00:00:22]} f5 {[%clk 00:46:57]} {[%emt 00:00:44]} 50. Ne7+
{[%clk 00:45:55]} {[%emt 00:01:10]} Kf6 {[%clk 00:47:12]} {[%emt 00:00:15]} 51.
Nxf5 {[%clk 00:45:57]} {[%emt 00:00:28]} g5 {[%clk 00:45:20]} {[%emt 00:02:22]}
52. Nxh6 {[%clk 00:40:17]} {[%emt 00:06:10]} gxh4 {[%clk 00:45:45]} {[%emt
00:00:04]} 53. Kf3 {[%clk 00:38:44]} {[%emt 00:02:03]} h3 {[%clk 00:46:09]}
{[%emt 00:00:06]} 54. g5+ {[%clk 00:36:02]} {[%emt 00:03:12]} Kg6 {[%clk
00:46:14]} {[%emt 00:00:25]} 55. Ng4 {[%clk 00:35:42]} {[%emt 00:00:50]} Kf5
{[%clk 00:46:40]} {[%emt 00:00:05]} 56. g6 {[%clk 00:34:43]} {[%emt 00:01:28]}
Nd2+ {[%clk 00:46:03]} {[%emt 00:01:07]} 57. Kg3 {[%clk 00:33:44]} {[%emt
00:01:29]} Kxg6 {[%clk 00:45:49]} {[%emt 00:00:45]} 58. Ne5+ {[%clk 00:33:23]}
{[%emt 00:00:51]} Kf5 {[%clk 00:45:54]} {[%emt 00:00:25]} 59. Kxh3 {[%clk
00:33:27]} {[%emt 00:00:25]} Nf1 {[%clk 00:44:19]} {[%emt 00:02:06]} 60. Nc4
{[%clk 00:32:46]} {[%emt 00:01:11]} Nxe3 {[%clk 00:44:43]} {[%emt 00:00:07]}
1/2-1/2